bitfinex-derivatives/quotes_SOLF0:USTF0_20241021
["timestamp","ask_amount","ask_price","bid_price","bid_amount"]
[1729519067320,30.61,163.11,162.92,11.62]
[1729519067521,3.0682,163.02,162.97,3.069]
[1729519067715,3.0682,163.02,162.92,11.62]
[1729519068422,3.0682,163.02,162.95,3.0695]
[1729519068619,3.0682,163.02,162.92,11.62]
[1729519068818,3.0684,163.01,162.92,11.62]
[1729519069625,3.0684,163.01,162.97,3.069]
[1729519070121,3.0682,163.02,162.97,3.069]
[1729519070720,3.12893809,163.04,162.92,11.62]
[1729519070921,3.068,163.03,162.98,3.0689]
[1729519071324,0.8646,163.08,162.93,1.3258]
[1729519071527,3.0679,163.04,162.99,3.0686]
[1729519072630,0.8646,163.08,162.93,1.3258]
[1729519072631,0.989,163.09,162.93,1.3258]
[1729519073214,1.3309,163.1,162.93,1.3258]
[1729519073426,12.649,163.15,162.93,7.4653]
[1729519073625,1.255,163.14,162.93,1.3258]
[1729519073927,3.0669,163.09,163.04,3.0676]
[1729519074716,3.0669,163.09,163.05,3.0676]
[1729519075924,3.066,163.14,163.09,3.0667]
[1729519076226,0.8641,163.17,163.02,2.649]
[1729519076421,0.8641,163.17,163.09,3.0668]
[1729519076422,3.066,163.14,163.09,3.0668]
[1729519076626,3.00095439,163.13,163.09,3.0668]
[1729519077123,3.00095439,163.13,163.02,2.649]
[1729519077320,11.66,163.14,162.93,6.1396]
[1729519077520,18.49,163.13,162.96,1.2689]
[1729519077721,18.49,163.13,162.99,3.0687]
[1729519077722,3.0679,163.04,162.99,3.0687]
[1729519078225,1.2543,163.12,162.96,1.2689]
[1729519078422,3.0678,163.04,162.96,1.2689]
[1729519078626,1.2543,163.12,162.96,1.2689]
[1729519079421,3.0669,163.09,163.04,3.0677]
[1729519079633,1.2543,163.12,163.04,3.0677]
[1729519079826,1.2543,163.12,162.96,1.2689]
[1729519080925,3.067,163.08,162.96,1.2689]
[1729519081428,3.067,163.08,163.03,3.0678]
[1729519081732,3.0672,163.07,163.03,3.0678]
[1729519081933,21.84773986,163.14,163.03,3.0678]
[1729519082136,6.1322,163.13,162.96,1.2689]
[1729519082427,18.49,163.12,162.96,12.9289]
[1729519083027,3.0673,163.07,162.96,12.9289]
[1729519083526,18.49,163.13,163.01,3.0681]
[1729519084233,18.49,163.13,162.96,12.9289]
[1729519084632,3.067,163.08,163.02,3.0681]
[1729519084830,18.49,163.13,163.02,3.0681]
[1729519085129,3.0673,163.07,163.02,3.0681]
[1729519085333,18.49,163.13,163.02,3.0681]
[1729519085837,18.49,163.13,163.0,3.0684]
[1729519086240,3.0677,163.05,163.0,3.0684]
[1729519086434,3.00009431,163.04,163.0,3.0684]
[1729519086637,18.49,163.09,162.97,3.0691]
[1729519086835,0.8636,163.08,162.97,3.0691]
[1729519087033,0.8636,163.08,162.96,364.34685]
[1729519087231,0.8636,163.08,162.98,3.0688]
[1729519087232,1.6653,163.08,162.98,3.0688]
[1729519087431,3.0682,163.02,162.98,3.0688]
[1729519087642,3.0682,163.02,162.96,364.34685]
[1729519087936,3.0682,163.02,162.97,3.0689]
[1729519088134,1.6653,163.08,162.96,364.34685]
[1729519088335,1.6653,163.08,162.99,3.0686]
[1729519088837,3.0681,163.03,162.99,3.0686]
[1729519089437,3.0678,163.04,162.99,3.0686]
[1729519090029,6.06857714,163.04,162.99,3.0686]
[1729519090236,3.0682,163.02,162.96,364.34685]
[1729519090536,3.00077714,163.04,162.96,364.34685]
[1729519090738,1.6653,163.08,163.0,3.0685]
[1729519091137,1.6653,163.08,162.96,364.34685]
[1729519091335,3.0677,163.05,163.0,3.0685]
[1729519091632,3.07786978,163.05,163.0,3.0685]
[1729519091834,3.0681,163.03,162.99,3.0685]
[1729519092039,1.6653,163.08,162.96,364.34685]
[1729519092539,3.0681,163.03,162.98,3.0687]
[1729519092735,3.0681,163.03,162.96,364.34685]
[1729519092931,3.0683,163.02,162.96,364.34685]
[1729519093134,3.0683,163.02,162.97,3.0689]
[1729519093330,3.0683,163.02,162.96,364.34685]
[1729519093528,3.0685,163.01,162.97,3.0691]
[1729519094040,3.0691,162.97,162.96,363.07795]
[1729519094248,3.00169147,162.98,162.96,363.07795]
[1729519094435,0.9888,163.05,162.96,363.07795]
[1729519094741,3.0691,162.97,162.96,363.07795]
[1729519095835,3.0691,162.97,162.96,360.42165]
[1729519097139,3.0691,162.97,162.96,261.17397244]
[1729519097342,3.0691,162.97,162.96,226.98027244]
[1729519097343,21.5591,162.97,162.96,226.98027244]
[1729519097543,24.63195916,162.97,162.96,226.98027244]
[1729519098343,24.63195916,162.97,162.96,213.98027244]
[1729519098532,21.5591,162.97,162.96,191.52827244]
[1729519098734,24.63656799,162.97,162.96,191.52827244]
[1729519099447,3.0691,162.97,162.96,190.75827244]
[1729519100046,24.62696543,162.97,162.96,97.59827244]
[1729519100443,32.3991,162.97,162.96,90.79907244]
[1729519100639,35.53245504,162.97,162.96,62.64207244]
[1729519100948,44.20570012,162.97,162.96,20.94857244]
[1729519101149,47.20715355,162.97,162.96,7.94857244]
[1729519101459,44.20570012,162.97,162.96,4.84857244]
[1729519101647,44.20570012,162.97,162.96,7.244e-05]
[1729519101848,56.23721024,162.97,162.96,7.244e-05]
[1729519102437,47.29785512,162.97,162.96,7.244e-05]
[1729519102647,56.23901773,162.97,162.96,7.244e-05]
[1729519102846,56.23901773,162.97,162.79,2.5449]
[1729519103047,3.0714,162.85,162.8,3.0723]
[1729519103253,3.1354706,162.84,162.8,3.0723]
[1729519103450,3.1354706,162.84,162.79,5.6173]
[1729519103662,6.2071706,162.84,162.79,2.5449]
[1729519103955,10.84,162.9,162.79,5.6173]
[1729519104152,3.0722,162.81,162.75,1.2616]
[1729519104355,3.02261088,162.81,162.75,1.2616]
[1729519104544,6.1401,162.92,162.71,2.6354]
[1729519104545,10.84,162.82,162.71,2.6354]
[1729519104753,10.84,162.81,162.71,2.6354]
[1729519105348,13.9000959,162.81,162.71,2.6354]
[1729519105949,3.0600959,162.81,162.71,2.6354]
[1729519106262,3.0719,162.83,162.74,3.0732]
[1729519106558,3.0719,162.83,162.75,1.2483]
[1729519106758,3.072,162.82,162.76,3.0729]
[1729519107257,3.1259375,162.84,162.75,1.2483]
[1729519107455,3.0717,162.84,162.78,3.0726]
[1729519107653,3.12070709,162.84,162.75,1.2483]
[1729519107854,10.84,162.85,162.75,1.2483]
[1729519108163,3.072,162.82,162.76,3.073]
[1729519108562,3.0722,162.81,162.75,4.3214]
[1729519108755,3.0722,162.81,162.75,1.2483]
[1729519108952,13.93978546,162.85,162.75,1.2483]
[1729519109357,3.072,162.82,162.76,3.0729]
[1729519109561,3.072,162.82,162.75,1.2483]
[1729519110262,3.0722,162.81,162.75,4.3215]
[1729519111359,13.93978546,162.85,162.75,1.2483]
[1729519111756,13.93978546,162.85,162.78,3.0725]
[1729519112057,17.01118546,162.85,162.75,1.2483]
[1729519112861,6.41395835,163.05,162.75,1.2483]
[1729519112862,129.47943449,162.93,162.75,1.2483]
[1729519113064,10.44,162.92,162.81,3.072]
[1729519113264,10.44,162.92,162.75,1.2483]
[1729519113466,28.93,162.92,162.75,1.2483]
[1729519113654,3.0716,162.84,162.79,3.0725]
[1729519113855,3.13463177,162.87,162.8,1.3749]
[1729519114059,10.44,162.9,162.81,1.2629]
[1729519114263,3.0707,162.89,162.84,3.0715]
[1729519114564,10.44,162.9,162.81,1.2629]
[1729519114767,129.47943449,162.93,162.81,1.2629]
[1729519114963,3.0704,162.91,162.81,1.2629]
[1729519115666,3.0704,162.91,162.85,3.0712]
[1729519115865,3.0704,162.9,162.85,3.0712]
[1729519116261,69.492155,162.97,162.81,1.2629]
[1729519116567,3.092155,162.97,162.82,10.44]
[1729519116863,9.1999,163.11,162.82,10.44]
[1729519116864,3.069,162.98,162.82,10.44]
[1729519117163,6.17357013,162.98,162.82,10.44]
[1729519117364,10.44,163.01,162.82,10.44]
[1729519117568,3.0691,162.97,162.92,3.0699]
[1729519117764,3.04277388,162.97,162.82,10.44]
[1729519117970,3.069,162.98,162.93,3.0697]
[1729519118159,3.14392297,162.97,162.93,3.0697]
[1729519118364,10.44,163.01,162.82,10.44]
[1729519118564,3.0693,162.96,162.82,10.44]
[1729519118961,13.46345023,163.01,162.82,10.44]
[1729519119161,3.0695,162.95,162.91,3.0701]
[1729519119767,13.46345023,163.01,162.84,10.44]
[1729519119768,13.46345023,163.01,162.89,3.0705]
[1729519120274,3.0698,162.94,162.85,1.3056]
[1729519120967,31.95345023,163.01,162.85,1.3056]
[1729519121370,31.95345023,163.01,162.85,4.3769]
[1729519121571,3.0705,162.9,162.85,4.3769]
[1729519121774,3.07160344,162.89,162.85,4.3769]
[1729519122169,3.0704,162.9,162.85,1.3056]
[1729519122378,3.10972181,162.89,162.85,1.3056]
[1729519122872,3.0701,162.92,162.87,3.0709]
[1729519123073,13.16970322,162.94,162.85,1.3056]
[1729519123472,13.16970322,162.94,162.88,3.0707]
[1729519123671,3.12970322,162.94,162.85,1.3056]
[1729519123976,3.0699,162.93,162.87,3.0708]
[1729519124176,3.1137181,162.94,162.85,1.3056]
[1729519124378,3.07,162.93,162.87,3.0708]
[1729519124775,3.07,162.93,162.85,1.3056]
[1729519125076,3.0698,162.94,162.85,1.3056]
[1729519125277,13.12758856,162.99,162.85,1.3056]
[1729519125480,13.12758856,162.99,162.88,3.0706]
[1729519126274,3.0696,162.95,162.89,3.0704]
[1729519126475,13.12758856,162.99,162.89,3.0704]
[1729519126876,3.0697,162.94,162.89,3.0704]
[1729519127280,13.12758856,162.99,162.89,3.0704]
[1729519127672,3.0698,162.94,162.89,3.0704]
[1729519128877,3.0698,162.94,162.85,1.3056]
[1729519128878,13.12758856,162.99,162.85,1.3056]
[1729519129078,3.0699,162.93,162.88,3.0707]
[1729519129471,3.0696,162.95,162.89,3.0705]
[1729519129783,13.12758856,162.99,162.85,1.3056]
[1729519130375,3.0698,162.94,162.85,1.3056]
[1729519130776,3.0698,162.94,162.89,3.0704]
[1729519130976,13.12758856,162.99,162.85,1.3056]
[1729519131183,3.0694,162.96,162.85,1.3056]
[1729519131376,3.0694,162.96,162.91,3.0701]
[1729519131878,6.0973388,162.96,162.91,3.0701]
[1729519132679,3.0279388,162.96,162.85,1.3056]
[1729519132880,3.0691,162.97,162.92,3.0699]
[1729519133081,6.07091468,162.97,162.92,3.0699]
[1729519134784,3.00181468,162.97,162.85,1.3056]
[1729519134983,3.0694,162.96,162.91,3.0701]
[1729519135186,6.18689127,162.96,162.91,3.0701]
[1729519135579,3.11749127,162.96,162.86,9.64]
[1729519135884,9.64,163.0,162.86,9.64]
[1729519136285,3.0694,162.96,162.91,3.07]
[1729519136787,3.0692,162.97,162.86,9.64]
[1729519137080,12.79006758,163.0,162.85,1.3056]
[1729519137286,3.0698,162.94,162.9,3.0704]
[1729519138280,3.0698,162.94,162.85,1.3056]
[1729519138281,3.0696,162.95,162.85,1.3056]
[1729519138588,12.79006758,163.0,162.85,1.3056]
[1729519138979,12.79006758,163.0,162.9,3.0703]
[1729519139587,12.79006758,163.0,162.85,1.3056]
[1729519139780,24.5675,162.99,162.85,1.3056]
[1729519139975,3.0703,162.91,162.85,1.3056]
[1729519140176,3.03685548,162.91,162.85,1.3056]
[1729519140380,9.26,162.94,162.84,3.0715]
[1729519140678,3.0708,162.89,162.84,3.0715]
[1729519140881,6.15519667,162.89,162.84,3.0715]
[1729519141077,3.0708,162.89,162.84,3.0715]
[1729519141687,3.07609619,162.89,162.81,5.6942]
[1729519141878,27.69,162.94,162.81,2.6222]
[1729519142077,27.69,162.93,162.81,1.2629]
[1729519142287,3.0717,162.84,162.81,1.2629]
[1729519142484,3.10161248,162.83,162.81,1.2629]
[1729519143284,9.26,162.93,162.81,1.2629]
[1729519143685,3.0711,162.87,162.82,3.0718]
[1729519143881,3.12466937,162.87,162.81,1.2629]
[1729519144082,3.0719,162.82,162.8,1.3749]
[1729519144278,12.39989671,162.87,162.77,1.3446]
[1729519144684,3.0722,162.81,162.77,1.3446]
[1729519144886,12.39989671,162.87,162.77,1.3446]
[1729519145385,3.0714,162.85,162.8,3.0722]
[1729519145993,9.26,162.87,162.64,9.26]
[1729519146180,1.2499,162.86,162.68,1.3446]
[1729519146591,1.2499,162.86,162.74,3.0734]
[1729519146592,3.0725,162.79,162.74,3.0734]
[1729519147081,3.12236741,162.78,162.76,3.073]
[1729519147480,3.12236741,162.78,162.68,1.3446]
[1729519147690,3.12236741,162.78,162.76,3.0729]
[1729519148085,3.0717,162.83,162.76,3.0729]
[1729519148289,1.2499,162.86,162.68,1.3446]
[1729519149189,3.0723,162.8,162.68,1.3446]
[1729519149388,1.2499,162.86,162.76,3.073]
[1729519149797,3.0721,162.82,162.76,3.073]
[1729519150686,3.0721,162.82,162.77,3.0728]
[1729519150888,3.0714,162.85,162.71,9.26]
[1729519151089,10.5099,162.86,162.71,9.26]
[1729519151295,12.33039458,162.87,162.8,3.0721]
[1729519151491,3.0713,162.86,162.72,1.2971]
[1729519151690,12.36406383,162.87,162.73,1.323]
[1729519152094,12.36406383,162.87,162.77,3.0727]
[1729519152291,12.36406383,162.87,162.73,1.323]
[1729519152902,12.36406383,162.87,162.72,1.2971]
[1729519153395,3.10406383,162.87,162.72,1.2971]
[1729519153588,3.071,162.87,162.77,3.0728]
[1729519153796,6.18321527,162.87,162.78,1.2884]
[1729519154191,6.18321527,162.87,162.81,3.0719]
[1729519154395,3.11221527,162.87,162.81,3.0719]
[1729519154595,1.2609,162.89,162.8,3.0722]
[1729519154800,4.36050774,162.89,162.78,1.2884]
[1729519154991,3.071,162.87,162.78,1.2884]
[1729519155194,6.14877519,162.87,162.78,1.2884]
[1729519155395,6.14877519,162.87,162.82,3.0717]
[1729519155396,3.071,162.87,162.82,3.0717]
[1729519155597,3.03257257,162.87,162.78,1.2884]
[1729519155802,1.2609,162.89,162.73,1.2884]
[1729519156004,18.43,162.88,162.75,3.0731]
[1729519156191,3.0722,162.81,162.75,3.0731]
[1729519156498,3.12574531,162.8,162.75,3.0731]
[1729519156693,3.12574531,162.8,162.73,1.2884]
[1729519156898,8.88,162.82,162.79,3.0725]
[1729519157098,3.12897481,162.81,162.79,3.0725]
[1729519157299,3.12897481,162.81,162.77,3.0727]
[1729519157695,8.88,162.82,162.77,3.0727]
[1729519157997,11.952,162.82,162.77,3.0727]
[1729519158301,15.04775656,162.82,162.77,3.0727]
[1729519158500,15.04775656,162.82,162.73,1.2884]
[1729519158501,3.0723,162.8,162.75,3.0732]
[1729519158700,11.97575656,162.82,162.73,1.2884]
[1729519159198,3.0722,162.81,162.73,1.2884]
[1729519160006,11.97575656,162.82,162.73,1.2884]
[1729519161004,11.97575656,162.82,162.78,3.0725]
[1729519162304,3.09575656,162.82,162.73,1.2884]
[1729519162597,8.88,162.86,162.73,1.2884]
[1729519162806,3.0718,162.83,162.79,3.0724]
[1729519165002,8.88,162.86,162.73,1.2884]
[1729519165198,8.88,162.87,162.73,1.2884]
[1729519165409,1.3248,162.92,162.73,4.30934595]
[1729519165595,3.0707,162.89,162.84,3.0714]
[1729519166298,3.0708,162.88,162.84,3.0714]
[1729519166499,3.04862719,162.87,162.84,3.0714]
[1729519167602,3.0707,162.89,162.84,3.0714]
[1729519167805,10.2048,162.92,162.85,3.0712]
[1729519168005,3.0705,162.9,162.85,3.0712]
[1729519168203,1.3248,162.92,162.81,1.3692]
[1729519168601,3.0703,162.91,162.81,1.3692]
[1729519168902,3.0703,162.91,162.86,3.071]
[1729519169202,1.3248,162.92,162.81,1.3692]
[1729519169400,1.3248,162.92,162.76,3.0729]
[1729519169599,1.3248,162.92,162.76,1.3638]
[1729519169900,24.5707,162.91,162.77,3.0727]
[1729519170302,3.0718,162.83,162.77,3.0727]
[1729519170500,3.10983016,162.83,162.77,3.0727]
[1729519170807,8.52,162.85,162.76,1.3638]
[1729519171105,11.63136785,162.85,162.75,1.2428]
[1729519171305,3.0725,162.79,162.75,1.2428]
[1729519171507,3.0725,162.79,162.72,1.332]
[1729519171704,2.5019,162.84,162.72,1.332]
[1729519172303,3.0727,162.78,162.73,3.0736]
[1729519172696,3.0727,162.78,162.72,1.332]
[1729519172909,2.5019,162.84,162.72,1.332]
[1729519173401,20.9319,162.84,162.67,1.3529]
[1729519173606,20.9319,162.84,162.67,2.6849]
[1729519174005,2.5019,162.84,162.67,2.6849]
[1729519174305,18.43,162.82,162.66,1.2428]
[1729519174608,3.0737,162.73,162.66,4.3176]
[1729519174804,8.52,162.75,162.66,1.2428]
[1729519175109,3.00539116,162.75,162.66,1.2428]
[1729519175306,8.52,162.8,162.66,1.2428]
[1729519175710,3.0731,162.76,162.66,1.2428]
[1729519175905,6.09756325,162.76,162.66,1.2428]
[1729519176103,6.09756325,162.76,162.69,3.0742]
[1729519176503,3.02446325,162.76,162.66,1.2428]
[1729519176807,67.42,162.83,162.67,8.52]
[1729519177011,8.52,162.82,162.67,8.52]
[1729519177205,3.0724,162.8,162.74,3.0733]
[1729519177401,8.52,162.82,162.74,3.0733]
[1729519177705,66.42,162.83,162.67,8.52]
[1729519177907,8.52,162.82,162.67,8.52]
[1729519179006,3.073,162.77,162.72,3.0736]
[1729519179310,3.00489996,162.76,162.67,8.52]
[1729519180203,3.0732,162.76,162.67,8.52]
[1729519180399,8.52,162.82,162.67,8.52]
[1729519180598,8.52,162.82,162.8,3.0723]
[1729519180803,8.52,162.87,162.73,8.52]
[1729519181005,8.52,162.92,162.74,12.3624]
[1729519181416,8.52,162.92,162.82,3.0718]
[1729519181608,8.52,162.92,162.74,12.3624]
[1729519182014,3.071,162.87,162.81,3.072]
[1729519182309,3.13078272,162.87,162.81,3.072]
[1729519182508,8.52,162.92,162.81,3.072]
[1729519182900,8.52,162.92,162.74,12.3624]
[1729519183310,38.81997346,162.92,162.74,12.3624]
[1729519183506,11.86997346,162.91,162.78,3.0727]
[1729519183707,3.0709,162.88,162.78,3.0727]
[1729519183914,11.86997346,162.91,162.78,3.0727]
[1729519184322,39.28198156,162.91,162.74,3.8424]
[1729519184609,39.28198156,162.9,162.74,3.8424]
[1729519184816,3.0719,162.82,162.77,3.0727]
[1729519185219,3.0719,162.82,162.74,3.8424]
[1729519185220,8.52,162.85,162.74,3.8424]
[1729519185515,3.0717,162.84,162.78,3.0725]
[1729519186208,3.0717,162.84,162.74,3.8424]
[1729519186408,14.66141767,162.85,162.74,3.8424]
[1729519186916,14.66141767,162.85,162.8,3.0723]
[1729519187218,3.07001767,162.85,162.74,3.8424]
[1729519187415,8.52,162.88,162.82,3.0719]
[1729519187608,8.52,162.88,162.74,3.8424]
[1729519187809,11.61968139,162.88,162.74,3.8424]
[1729519188216,3.0715,162.85,162.74,3.8424]
[1729519188419,11.61968139,162.88,162.82,3.0718]
[1729519188807,3.0711,162.87,162.76,8.52]
[1729519189215,11.61968139,162.88,162.76,8.52]
[1729519189421,3.0711,162.86,162.82,3.0718]
[1729519190422,3.0711,162.86,162.81,3.072]
[1729519191216,3.09968139,162.88,162.76,8.52]
[1729519191523,1.3706,162.95,162.76,8.52]
[1729519191720,3.0705,162.9,162.86,3.0711]
[1729519193226,3.0714,162.85,162.74,3.8424]
[1729519193415,6.06904169,162.85,162.74,3.8424]
[1729519193723,6.06904169,162.85,162.8,3.0721]
[1729519194124,3.0716,162.84,162.8,3.0721]
[1729519194617,3.06926295,162.83,162.76,3.0729]
[1729519194824,3.0714,162.85,162.74,3.8424]
[1729519195120,3.0714,162.85,162.81,3.0721]
[1729519195415,3.05696745,162.85,162.81,3.0721]
[1729519195618,3.0717,162.83,162.74,3.8424]
[1729519195824,3.07635604,162.83,162.74,3.8424]
[1729519196024,8.14,162.9,162.74,3.8424]
[1729519196220,38.45862114,162.9,162.74,3.8424]
[1729519196430,38.45862114,162.9,162.56,30.7682]
[1729519196431,18.43,162.88,162.73,3.0735]
[1729519196625,11.56819951,162.87,162.67,1.2414]
[1729519196919,18.43,162.86,162.73,3.0736]
[1729519197130,39.31902065,162.85,162.68,1.3379]
[1729519197429,6.1426,162.86,162.68,4.4124]
[1729519197430,47.45902065,162.84,162.68,4.4124]
[1729519197622,3.0734,162.75,162.68,1.3379]
[1729519197815,6.08426241,162.75,162.68,1.3379]
[1729519198124,6.08426241,162.75,162.7,3.0741]
[1729519198422,3.01086241,162.75,162.68,1.3379]
[1729519198614,8.14,162.78,162.68,1.3379]
[1729519199019,3.0732,162.76,162.7,3.074]
[1729519199323,11.17708244,162.78,162.68,1.3379]
[1729519199522,11.17708244,162.78,162.73,3.0735]
[1729519200127,11.17708244,162.78,162.74,3.0733]
[1729519200323,8.14,162.86,162.71,8.14]
[1729519200925,26.57,162.86,162.68,1.3379]
[1729519201124,3.073,162.76,162.71,3.074]
[1729519201327,3.06324031,162.76,162.68,1.3379]
[1729519201527,8.14,162.79,162.68,1.3379]
[1729519202125,3.0734,162.74,162.69,3.0743]
[1729519202721,1.2797,162.78,162.56,66.42]
[1729519202920,1.2613,162.77,162.58,1.246]
[1729519203318,3.0735,162.74,162.69,3.0742]
[1729519203531,1.2613,162.77,162.63,8.14]
[1729519203928,3.074,162.71,162.63,8.14]
[1729519204524,3.0745,162.69,162.64,3.0752]
[1729519204730,3.04477928,162.68,162.63,8.14]
[1729519204920,8.14,162.73,162.58,1.246]
[1729519205127,8.14,162.73,162.58,9.406]
[1729519206430,3.0746,162.68,162.64,3.0752]
[1729519206627,6.20630846,162.68,162.64,3.0752]
[1729519206823,8.14,162.73,162.64,3.0752]
[1729519207023,3.075,162.66,162.61,3.0757]
[1729519207219,3.00397784,162.65,162.58,1.246]
[1729519207926,8.16,162.67,162.58,1.246]
[1729519208130,8.16,162.67,162.59,3.0761]
[1729519208323,3.0756,162.63,162.58,1.246]
[1729519208527,3.00520898,162.62,162.59,3.0762]
[1729519208926,3.00520898,162.62,162.58,1.246]
[1729519209229,3.0755,162.64,162.6,3.076]
[1729519209421,3.13698267,162.64,162.57,1.3321]
[1729519209625,8.16,162.67,162.57,1.3321]
[1729519210236,11.27943354,162.67,162.57,1.3321]
[1729519210425,3.11943354,162.67,162.64,3.0751]
[1729519210629,3.0746,162.68,162.57,1.3321]
[1729519210831,1.2451,162.7,162.57,1.3321]
[1729519211231,3.03415096,162.69,162.57,1.3321]
[1729519211531,3.0743,162.7,162.66,3.0748]
[1729519211732,3.15360815,162.69,162.66,3.0748]
[1729519211935,9.4128,162.73,162.6,8.16]
[1729519212129,9.4128,162.73,162.61,2.6084]
[1729519212431,1.2846,162.77,162.61,2.6084]
[1729519212739,3.14356035,162.79,162.61,2.6084]
[1729519213035,8.16,162.84,162.61,2.6084]
[1729519213238,3.0718,162.83,162.61,2.6084]
[1729519213533,1.2846,162.86,162.66,6.1499]
[1729519213726,1.2846,162.86,162.67,9.4112]
[1729519213925,11.23973834,162.88,162.67,9.4112]
[1729519213926,3.07973834,162.88,162.67,9.4112]
[1729519214125,1.2623,162.94,162.67,9.4112]
[1729519214327,3.0706,162.89,162.84,3.0714]
[1729519214538,3.14391199,162.92,162.83,8.16]
[1729519214739,3.14391199,162.92,162.76,66.44]
[1729519214740,8.16,162.97,162.82,8.16]
[1729519214941,3.07,162.92,162.86,3.0711]
[1729519215240,11.31068434,162.97,162.82,8.16]
[1729519215428,3.0702,162.91,162.85,3.0713]
[1729519215826,29.74068434,162.97,162.82,8.16]
[1729519216037,11.31068434,162.97,162.82,8.16]
[1729519216541,3.07,162.93,162.82,8.16]
[1729519216731,11.31068434,162.97,162.82,8.16]
[1729519216927,3.0699,162.93,162.84,3.0714]
[1729519217133,11.31068434,162.97,162.84,3.0714]
[1729519217528,11.31068434,162.97,162.85,3.0712]
[1729519218138,29.74068434,162.97,162.82,8.16]
[1729519218342,3.15068434,162.97,162.82,8.16]
[1729519218539,8.14,162.96,162.82,8.16]
[1729519218738,3.0699,162.93,162.86,3.071]
[1729519219345,8.14,162.96,162.87,3.0709]
[1729519219537,3.0697,162.94,162.87,3.0709]
[1729519219836,8.14,162.96,162.82,8.16]
[1729519222234,3.07,162.93,162.86,3.0711]
[1729519222435,3.07,162.93,162.82,8.16]
[1729519222745,8.14,162.96,162.82,8.16]
[1729519224043,17.12847314,162.96,162.85,3.0713]
[1729519224348,28.5076688,162.96,162.77,3.9271]
[1729519224536,20.3676688,162.95,162.78,8.08]
[1729519224740,3.0708,162.88,162.77,3.9271]
[1729519224942,3.07744437,162.88,162.77,3.9271]
[1729519225142,8.08,162.9,162.77,3.9271]
[1729519225143,8.08,162.9,162.77,1.2512]
[1729519225345,8.08,162.9,162.67,147.86704551]
[1729519225346,3.0721,162.82,162.76,3.073]
[1729519225542,6.21226152,162.82,162.76,3.073]
[1729519225747,3.0714,162.85,162.71,8.08]
[1729519225944,3.10326908,162.85,162.71,8.08]
[1729519226139,2.6137,162.89,162.71,8.08]
[1729519226342,41.40258785,162.89,162.71,8.08]
[1729519226546,20.35888785,162.88,162.71,8.08]
[1729519226840,23.39052411,162.88,162.77,3.0727]
[1729519227148,23.39052411,162.88,162.71,8.08]
[1729519227648,3.072,162.82,162.77,3.0728]
[1729519228043,3.0722,162.81,162.75,3.0732]
[1729519228246,3.0722,162.81,162.71,8.08]
[1729519228449,8.08,162.84,162.71,8.08]
[1729519228747,3.072,162.82,162.76,3.0729]
[1729519228951,8.08,162.84,162.76,3.0729]
[1729519229250,3.0721,162.81,162.76,3.0729]
[1729519230638,3.0721,162.81,162.71,8.08]
[1729519230639,3.0724,162.8,162.71,8.08]
[1729519231043,8.08,162.84,162.71,8.08]
[1729519231837,3.0724,162.8,162.76,3.073]
[1729519232243,3.0724,162.8,162.72,3.0737]
[1729519232445,8.08,162.84,162.69,8.08]
[1729519233044,8.08,162.84,162.7,3.02052216]
[1729519233241,8.08,162.84,162.69,8.08]
[1729519233439,8.08,162.84,162.76,3.0729]
[1729519233755,11.11163626,162.88,162.75,8.08]